fUSD/lending_fUSD_20241201
["ID","MTS","AMOUNT","RATE_DAILY","PERIOD"]
[343930464,1733089843488,-5243.99999995,8e-05,2]
[343930465,1733089843500,-10753.33729283,8e-05,2]
[343930466,1733089843512,-9479.35538648,8e-05,2]
[343930467,1733089843552,-21051.0908,8e-05,2]
[343930468,1733089843564,-11984.79515386,8e-05,2]
[343930469,1733089843575,-18984.584256,8e-05,2]
[343930502,1733089845771,-329.5256852,8e-05,2]
[343930503,1733089845783,-787311.28581096,8e-05,2]
[343930504,1733089845794,-1772.48,8e-05,2]
[343930505,1733089845811,-2365.2,8e-05,2]
[343930506,1733089845822,-1135.0,8e-05,2]
[343930507,1733089845834,-1348.923121,8e-05,2]
[343930508,1733089845845,-9762.483342,8e-05,2]
[343930510,1733089847987,-9773.00700001,8e-05,2]
[343930511,1733089848039,-654.35864855,8e-05,2]
[343930512,1733089848051,-5680.49992,8e-05,2]
[343930513,1733089848078,-59156.774,8e-05,2]
[343930514,1733089848148,-1080.1125669,8e-05,2]
[343930515,1733089848160,-2257.0396095,8e-05,2]
[343930516,1733089848257,-67176.33590937,8e-05,2]
[343930517,1733089880545,1900.0,7e-05,2]
[343930518,1733089882687,3800.0,7.1e-05,2]
[343930520,1733090211443,282.38,7.084e-05,2]
[343930523,1733090264335,500.0,7.047e-05,2]
[343930524,1733090326438,1500.0,7.072e-05,2]
[343930525,1733090344509,250.0,7.072e-05,2]
[343930527,1733090524240,1907.15,7.09e-05,2]
[343930528,1733090565976,2043.5,7.1e-05,2]
[343930529,1733090575633,7093.17075,0.00025,120]
[343930530,1733090592472,7093.17075,0.00025,120]
[343930531,1733090646146,2635.08,7.126e-05,2]
[343930532,1733090830973,150.0,7e-05,2]
[343930533,1733090831003,1450.0,7e-05,2]
[343930534,1733090832707,3300.0,7.1e-05,2]
[343930535,1733090868663,-335.85,0.000201,31]
[343930536,1733090868691,-335.85,0.000201,31]
[343930537,1733090868721,-335.85,0.000201,31]
[343930538,1733090868752,-335.85,0.000201,31]
[343930539,1733090868786,-335.85,0.000201,31]
[343930540,1733090868814,-335.85,0.000201,31]
[343930541,1733090868843,-335.85,0.000201,31]
[343930542,1733090868871,-335.85,0.000201,31]
[343930543,1733090868898,-335.85,0.000201,31]
[343930544,1733090868925,-335.85,0.000201,31]
[343930545,1733090868954,-335.85,0.000201,31]
[343930546,1733090868981,-335.85,0.000201,31]
[343930547,1733090869011,-335.85,0.000201,31]
[343930548,1733090869037,-335.85,0.000201,31]
[343930549,1733090869064,-335.85,0.000201,31]
[343930550,1733090869091,-335.85,0.000201,31]
[343930551,1733090869123,-12297.3726995,0.00022,60]
[343930552,1733090869152,-335.85,0.000235,31]
[343930553,1733090869180,-335.85,0.000235,31]
[343930554,1733090869209,-335.85,0.000235,31]
[343930555,1733090869236,-335.85,0.000235,31]
[343930556,1733090869265,-335.85,0.000235,31]
[343930557,1733090869292,-335.85,0.000235,31]
[343930558,1733090869321,-335.85,0.000235,31]
[343930559,1733090869348,-335.85,0.000235,31]
[343930560,1733090869378,-335.85,0.000235,31]
[343930561,1733090869405,-335.85,0.000235,31]
[343930562,1733090869433,-335.85,0.000235,31]
[343930563,1733090869461,-335.85,0.000235,31]
[343930564,1733090869487,-335.85,0.000235,31]
[343930565,1733090869517,-335.85,0.000235,31]
[343930566,1733090869546,-335.85,0.000235,31]
[343930567,1733090869574,-335.85,0.000235,31]
[343930568,1733090869601,-335.85,0.000235,31]
[343930569,1733090869629,-335.85,0.000235,31]
[343930570,1733090869657,-335.85,0.000235,31]
[343930571,1733090869686,-335.85,0.000235,31]
[343930572,1733090869714,-335.85,0.000235,31]
[343930573,1733090869741,-335.85,0.000235,31]
[343930574,1733090869773,-335.85,0.000235,31]
[343930575,1733090869803,-335.85,0.000235,31]
[343930576,1733090869828,-1000.0,0.00024,30]
[343930577,1733090869866,-3887.79711522,0.00025,60]
[343930578,1733090869893,-1022.67140537,0.00025,60]
[343930579,1733090869917,-10000.0,0.00025,30]
[343930580,1733090869943,-1000.0,0.00025,30]
[343930581,1733090869967,-1000.0,0.00025,30]
[343930582,1733090870288,-500.0,0.00025,30]
[343930583,1733090870315,-500.0,0.00025,30]
[343930584,1733090870339,-500.0,0.00025,30]
[343930585,1733090870363,-500.0,0.00025,30]
[343930586,1733090870387,-500.0,0.00025,30]
[343930587,1733090870411,-500.0,0.00025,30]
[343930588,1733090870435,-500.0,0.00025,30]
[343930589,1733090870460,-500.0,0.00025,30]
[343930590,1733090870485,-500.0,0.00025,30]
[343930591,1733090870511,-515.65853087,0.00025,30]
[343930592,1733090870539,-300.0,0.00026,120]
[343930593,1733090870563,-3250.0,0.00026,120]
[343930594,1733090870591,-335.85,0.000268,31]
[343930595,1733090870619,-335.85,0.000268,31]
[343930596,1733090870647,-335.85,0.000268,31]
[343930597,1733090870678,-335.85,0.000268,31]
[343930598,1733090870709,-335.85,0.000268,31]
[343930599,1733090870736,-335.85,0.000268,31]
[343930600,1733090870765,-335.85,0.000268,31]
[343930601,1733090870796,-335.85,0.000268,31]
[343930602,1733090870825,-335.85,0.000268,31]
[343930603,1733090870852,-335.85,0.000268,31]
[343930604,1733090870881,-335.85,0.000268,31]
[343930605,1733090870909,-335.85,0.000268,31]
[343930606,1733090870936,-335.85,0.000268,31]
[343930607,1733090870964,-335.85,0.000268,31]
[343930608,1733090870992,-335.85,0.000268,31]
[343930609,1733090871023,-335.85,0.000268,31]
[343930610,1733090871051,-335.85,0.000268,31]
[343930611,1733090871081,-335.85,0.000268,31]
[343930612,1733090871108,-335.85,0.000268,31]
[343930613,1733090871136,-335.85,0.000268,31]
[343930614,1733090871163,-335.85,0.000268,31]
[343930615,1733090871189,-335.85,0.000268,31]
[343930616,1733090871216,-335.85,0.000268,31]
[343930617,1733090871242,-335.85,0.000268,31]
[343930618,1733090871269,-240.79,0.00026986,120]
[343930619,1733090871295,-757.26,0.00026986,120]
[343930620,1733090871320,-5243.08,0.00027,120]
[343930621,1733090871345,-3863.24655484,0.00027,120]
[343930622,1733090871370,-3807.47373737,0.00027,60]
[343930623,1733090871394,-196.87573234,0.00027,120]
[343930624,1733090871420,-750.0,0.00027,120]
[343930625,1733090871446,-160.97930984,0.00027397,30]
[343930626,1733090871470,-200.0,0.00027397,60]
[343930627,1733090871502,-750.0,0.00028,120]
[343930628,1733090871527,-2000.0,0.00028,90]
[343930629,1733090871553,-2000.0,0.00028904,120]
[343930630,1733090871579,-2000.0,0.00028904,30]
[343930631,1733090871603,-2000.0,0.00028904,120]
[343930632,1733090871628,-750.0,0.00029,120]
[343930633,1733090871653,-2000.0,0.00029041,120]
[343930634,1733090871679,-2000.0,0.00029041,30]
[343930635,1733090871706,-2000.0,0.00029041,120]
[343930636,1733090871731,-1103.63785493,0.00029041,120]
[343930637,1733090871757,-2000.0,0.00029178,120]
[343930638,1733090871786,-2000.0,0.00029178,30]
[343930639,1733090871812,-2000.0,0.00029178,120]
[343930640,1733090871839,-2000.0,0.00029315,120]
[343930641,1733090871863,-2000.0,0.00029315,30]
[343930642,1733090871893,-2000.0,0.00029315,120]
[343930643,1733090871918,-2000.0,0.00029452,120]
[343930644,1733090871943,-2000.0,0.00029452,30]
[343930645,1733090871968,-2000.0,0.00029452,120]
[343930646,1733090871996,-2000.0,0.00029589,120]
[343930647,1733090872027,-2000.0,0.00029589,30]
[343930648,1733090872052,-2000.0,0.00029589,120]
[343930649,1733090872076,-2000.0,0.00029726,120]
[343930650,1733090872102,-2000.0,0.00029726,30]
[343930651,1733090872127,-2000.0,0.00029726,120]
[343930652,1733090872153,-2000.0,0.00029863,120]
[343930653,1733090872178,-2000.0,0.00029863,30]
[343930654,1733090872203,-2000.0,0.00029863,120]
[343930655,1733090872231,-3000.0,0.0003,30]
[343930656,1733090872259,-151.0,0.0003,120]
[343930657,1733090872284,-150.0,0.0003,120]
[343930658,1733090872310,-750.0,0.0003,120]
[343930659,1733090872334,-1000.0,0.0003,120]
[343930660,1733090872359,-2000.0,0.0003,120]
[343930661,1733090872384,-2000.0,0.0003,30]
[343930662,1733090872409,-2000.0,0.0003,120]
[343930663,1733090872434,-177.52222222,0.0003,120]
[343930664,1733090872459,-200.0,0.00030137,60]
[343930665,1733090872485,-2000.0,0.00030137,120]
[343930666,1733090872511,-2000.0,0.00030137,30]
[343930667,1733090872537,-2000.0,0.00030137,120]
[343930668,1733090872565,-335.85,0.000302,31]
[343930669,1733090872592,-335.85,0.000302,31]
[343930670,1733090872619,-335.85,0.000302,31]
[343930671,1733090872647,-335.85,0.000302,31]
[343930672,1733090872675,-335.85,0.000302,31]
[343930673,1733090872703,-335.85,0.000302,31]
[343930674,1733090872731,-335.85,0.000302,31]
[343930675,1733090872758,-335.85,0.000302,31]
[343930676,1733090872787,-335.85,0.000302,31]
[343930677,1733090872815,-335.85,0.000302,31]
[343930678,1733090872844,-335.85,0.000302,31]
[343930679,1733090872871,-335.85,0.000302,31]
[343930680,1733090872898,-335.85,0.000302,31]
[343930681,1733090872925,-335.85,0.000302,31]
[343930682,1733090872953,-335.85,0.000302,31]
[343930683,1733090872980,-335.85,0.000302,31]
[343930684,1733090873008,-335.85,0.000302,31]
[343930685,1733090873236,-335.85,0.000302,31]
[343930686,1733090873282,-335.85,0.000302,31]
[343930687,1733090873310,-335.85,0.000302,31]
[343930688,1733090873335,-335.85,0.000302,31]
[343930689,1733090873361,-335.85,0.000302,31]
[343930690,1733090873388,-335.85,0.000302,31]
[343930691,1733090873415,-335.85,0.000302,31]
[343930692,1733090873442,-548.0,0.00030613,30]
[343930693,1733090873466,-177.52222222,0.00030849,120]
[343930694,1733090873491,-750.0,0.00031,120]
[343930695,1733090873519,-151.0,0.00031342,120]
[343930696,1733090873546,-2000.0,0.00031644,120]
[343930697,1733090873571,-2000.0,0.00031644,120]
[343930698,1733090873598,-177.52222222,0.00031699,120]
[343930699,1733090873623,-2000.0,0.00031781,120]
[343930700,1733090873649,-2000.0,0.00031781,120]
[343930701,1733090873673,-2000.0,0.00031918,120]
[343930702,1733090873697,-2000.0,0.00031918,120]
[343930703,1733090873723,-500.0,0.00032,30]
[343930704,1733090873748,-500.0,0.00032,30]
[343930705,1733090873776,-500.0,0.00032,30]
[343930706,1733090873802,-500.0,0.00032,30]
[343930707,1733090873828,-900.0,0.00032,30]
[343930708,1733090873853,-273.80657449,0.00032,30]
[343930709,1733090873882,-500.0,0.00032,30]
[343930710,1733090873907,-900.0,0.00032,30]
[343930711,1733090873936,-500.0,0.00032,30]
[343930712,1733090873962,-900.0,0.00032,30]
[343930713,1733090873987,-500.0,0.00032,30]
[343930714,1733090874014,-500.0,0.00032,30]
[343930715,1733090874038,-900.0,0.00032,30]
[343930716,1733090874062,-500.0,0.00032,30]
[343930717,1733090874088,-900.0,0.00032,30]
[343930718,1733090874112,-900.0,0.00032,30]
[343930719,1733090874137,-900.0,0.00032,30]
[343930720,1733090874163,-900.0,0.00032,30]
[343930721,1733090874188,-900.0,0.00032,30]
[343930722,1733090874214,-900.0,0.00032,30]
[343930723,1733090874239,-500.0,0.00032,30]
[343930724,1733090874268,-207.85701451,0.00032,30]
[343930725,1733090874293,-500.0,0.00032,30]
[343930726,1733090874318,-546.76581038,0.00032,30]
[343930727,1733090874343,-900.0,0.00032,30]
[343930728,1733090874368,-900.0,0.00032,30]
[343930729,1733090874392,-810.0,0.00032,30]
[343930730,1733090874417,-900.0,0.00032,30]
[343930731,1733090874442,-900.0,0.00032,30]
[343930732,1733090874466,-900.0,0.00032,30]
[343930733,1733090874491,-900.0,0.00032,30]
[343930734,1733090874517,-900.0,0.00032,30]
[343930735,1733090874543,-900.0,0.00032,30]
[343930736,1733090874567,-600.0,0.00032,30]
[343930737,1733090874592,-900.0,0.00032,30]
[343930738,1733090874617,-600.0,0.00032,30]
[343930739,1733090874664,-900.0,0.00032,30]
[343930740,1733090874712,-600.0,0.00032,30]
[343930741,1733090874757,-900.0,0.00032,30]
[343930742,1733090874805,-600.0,0.00032,30]
[343930743,1733090874849,-500.0,0.00032,30]
[343930744,1733090874891,-900.0,0.00032,30]
[343930745,1733090874934,-600.0,0.00032,30]
[343930746,1733090874974,-900.0,0.00032,30]
[343930747,1733090875010,-500.0,0.00032,30]
[343930748,1733090875053,-900.0,0.00032,30]
[343930749,1733090875091,-500.7,0.00032,30]
[343930750,1733090875128,-500.0,0.00032,30]
[343930751,1733090875165,-600.0,0.00032,30]
[343930752,1733090875204,-159.29312435,0.00032,30]
[343930753,1733090875244,-900.0,0.00032,30]
[343930754,1733090875294,-159.96807898,0.00032,30]
[343930755,1733090875333,-610.92284432,0.00032,30]
[343930756,1733090875373,-500.0,0.00032,30]
[343930757,1733090875411,-500.0,0.00032,30]
[343930758,1733090875451,-600.0,0.00032,30]
[343930759,1733090875491,-900.0,0.00032,30]
[343930760,1733090875536,-500.0,0.00032,30]
[343930761,1733090875575,-500.0,0.00032,30]
[343930762,1733090875615,-500.0,0.00032,30]
[343930763,1733090875655,-600.0,0.00032,30]
[343930764,1733090875694,-900.0,0.00032,30]
[343930765,1733090875736,-600.0,0.00032,30]
[343930766,1733090875781,-500.0,0.00032,30]
[343930767,1733090875822,-900.0,0.00032,30]
[343930768,1733090875861,-968.99516771,0.00032,30]
[343930769,1733090875901,-600.0,0.00032,30]
[343930770,1733090875939,-500.0,0.00032,30]
[343930771,1733090875979,-900.0,0.00032,30]
[343930772,1733090876020,-510.63401447,0.00032,30]
[343930773,1733090876061,-500.0,0.00032,30]
[343930774,1733090876104,-600.0,0.00032,30]
[343930775,1733090876149,-687.33312344,0.00032,30]
[343930776,1733090876194,-500.0,0.00032,30]
[343930777,1733090876246,-500.0,0.00032,30]
[343930778,1733090876299,-600.0,0.00032,30]
[343930779,1733090876345,-500.0,0.00032,30]
[343930780,1733090876390,-600.0,0.00032,30]
[343930781,1733090876436,-500.0,0.00032,30]
[343930782,1733090876479,-297.18388091,0.00032,30]
[343930783,1733090876522,-500.0,0.00032,30]
[343930784,1733090876564,-500.0,0.00032,30]
[343930785,1733090876612,-500.0,0.00032,30]
[343930786,1733090876656,-500.0,0.00032,30]
[343930787,1733090876701,-500.0,0.00032,30]
[343930788,1733090876745,-500.0,0.00032,30]
[343930789,1733090876792,-500.0,0.00032,30]
[343930790,1733090876832,-500.0,0.00032,30]
[343930791,1733090877233,-500.0,0.00032,30]
[343930792,1733090877311,-2400.0,0.00032,30]
[343930793,1733090877337,-500.0,0.00032,30]
[343930794,1733090877363,-2400.0,0.00032,30]
[343930795,1733090877387,-500.0,0.00032,30]
[343930796,1733090877412,-500.0,0.00032,30]
[343930797,1733090877438,-162.82916863,0.00032,30]
[343930798,1733090877462,-2400.0,0.00032,30]
[343930799,1733090877486,-500.0,0.00032,30]
[343930800,1733090877513,-500.0,0.00032,30]
[343930801,1733090877543,-2400.0,0.00032,30]
[343930802,1733090877571,-985.28448244,0.00032,30]
[343930803,1733090877596,-500.0,0.00032,30]
[343930804,1733090877621,-2400.0,0.00032,30]
[343930805,1733090877645,-786.15458986,0.00032,30]
[343930806,1733090877670,-500.0,0.00032,30]
[343930807,1733090877702,-500.0,0.00032,30]
[343930808,1733090877729,-500.0,0.00032,30]
[343930809,1733090877757,-2400.0,0.00032,30]
[343930810,1733090877787,-475.24133958,0.00032,30]
[343930811,1733090877814,-2400.0,0.00032,30]
[343930812,1733090877842,-2400.0,0.00032,30]
[343930813,1733090877871,-2400.0,0.00032,30]
[343930814,1733090877898,-938.17726079,0.00032,30]
[343930815,1733090877924,-596.47315421,0.00032,30]
[343930816,1733090877951,-2400.0,0.00032,30]
[343930817,1733090877977,-2400.0,0.00032,30]
[343930818,1733090878006,-473.0021078,0.00032,30]
[343930819,1733090878033,-2400.0,0.00032,30]
[343930820,1733090878060,-2400.0,0.00032,30]
[343930821,1733090878085,-187.20412744,0.00032,30]
[343930822,1733090878112,-2400.0,0.00032,30]
[343930823,1733090878138,-500.0,0.00032,30]
[343930824,1733090878164,-2400.0,0.00032,30]
[343930825,1733090878191,-500.0,0.00032,30]
[343930826,1733090878217,-500.0,0.00032,30]
[343930827,1733090878244,-156.73411585,0.00032,30]
[343930828,1733090878272,-500.0,0.00032,30]
[343930829,1733090878298,-500.0,0.00032,30]
[343930830,1733090878324,-500.0,0.00032,30]
[343930831,1733090878351,-500.0,0.00032,30]
[343930832,1733090878376,-500.0,0.00032,30]
[343930833,1733090878403,-500.0,0.00032,30]
[343930834,1733090878430,-500.0,0.00032,30]
[343930835,1733090878455,-500.0,0.00032,30]
[343930836,1733090878481,-500.0,0.00032,30]
[343930837,1733090878510,-500.0,0.00032,30]
[343930838,1733090878538,-500.0,0.00032,30]
[343930839,1733090878565,-500.7,0.00032,30]
[343930840,1733090878594,-581.78400123,0.00032,30]
[343930841,1733090878620,-475.24133958,0.00032,30]
[343930842,1733090878645,-953.80497005,0.00032,30]
[343930843,1733090878671,-528.3943897,0.00032,30]
[343930844,1733090878696,-500.0,0.00032,30]
[343930845,1733090878722,-473.0021078,0.00032,30]
[343930846,1733090878746,-500.0,0.00032,30]
[343930847,1733090878774,-359.30740448,0.00032,30]
[343930848,1733090878800,-500.0,0.00032,30]
[343930849,1733090878828,-500.0,0.00032,30]
[343930850,1733090878854,-500.0,0.00032,30]
[343930851,1733090878880,-500.0,0.00032,30]
[343930852,1733090878907,-500.0,0.00032,30]
[343930853,1733090878933,-500.0,0.00032,30]
[343930854,1733090878959,-500.0,0.00032,30]
[343930855,1733090878985,-500.0,0.00032,30]
[343930856,1733090879013,-500.0,0.00032,30]
[343930857,1733090879038,-475.24133958,0.00032,30]
[343930858,1733090879063,-473.0021078,0.00032,30]
[343930859,1733090879089,-475.24133958,0.00032,30]
[343930860,1733090879115,-473.0021078,0.00032,30]
[343930861,1733090879141,-328.45658574,0.00032,30]
[343930862,1733090879165,-500.0,0.00032,30]
[343930863,1733090879191,-150.0,0.00032,120]
[343930864,1733090879217,-750.0,0.00032,120]
[343930865,1733090879244,-2000.0,0.00032055,120]
[343930866,1733090879273,-2000.0,0.00032055,120]
[343930867,1733090879299,-2000.0,0.00032192,120]
[343930868,1733090879324,-2000.0,0.00032192,120]
[343930869,1733090879350,-2000.0,0.00032329,120]
[343930870,1733090879376,-2000.0,0.00032329,120]
[343930871,1733090879402,-2000.0,0.00032466,120]
[343930872,1733090879428,-2000.0,0.00032466,120]
[343930873,1733090879454,-1663.122,0.000325,120]
[343930874,1733090879479,-1663.122,0.000325,120]
[343930875,1733090879508,-1663.122,0.000325,120]
[343930876,1733090879534,-1663.122,0.000325,120]
[343930877,1733090879560,-1663.122,0.000325,120]
[343930878,1733090879588,-177.52222222,0.00032548,120]
[343930879,1733090879619,-2000.0,0.00032603,120]
[343930880,1733090879646,-2000.0,0.00032603,120]
[343930881,1733090879674,-151.0,0.00032685,120]
[343930882,1733090879700,-2000.0,0.0003274,120]
[343930883,1733090879728,-2000.0,0.0003274,120]
[343930884,1733090879757,-2106.07,0.00032876,120]
[343930885,1733090879792,-200.0,0.00032877,60]
[343930886,1733090879823,-2000.0,0.00032877,120]
[343930887,1733090879849,-2000.0,0.00032877,120]
[343930888,1733090879875,-15000.0,0.00033,30]
[343930889,1733090879900,-1000.0,0.00033128,60]
[343930890,1733090879925,-2106.07,0.0003315,120]
[343930891,1733090879951,-750.0,0.000332,120]
[343930892,1733090880184,-2334.47,0.000332,30]
[343930893,1733090880214,-5000.0,0.00033356,30]
[343930894,1733090880241,-177.52222222,0.00033397,120]
[343930895,1733090880270,-500.0,0.00033402,60]
[343930896,1733090880296,-2106.07,0.00033424,120]
[343930897,1733090880322,-1883.533,0.0003347,35]
[343930898,1733090880352,-335.85,0.000335,31]
[343930899,1733090880381,-335.85,0.000335,31]
[343930900,1733090880410,-335.85,0.000335,31]
[343930901,1733090880438,-335.85,0.000335,31]
[343930902,1733090880466,-335.85,0.000335,31]
[343930903,1733090880493,-335.85,0.000335,31]
[343930904,1733090880523,-335.85,0.000335,31]
[343930905,1733090880551,-335.85,0.000335,31]
[343930906,1733090880580,-335.85,0.000335,31]
[343930907,1733090880610,-335.85,0.000335,31]
[343930908,1733090880641,-335.85,0.000335,31]
[343930909,1733090880669,-335.85,0.000335,31]
[343930910,1733090880695,-768.0,0.00033674,30]
[343930911,1733090880720,-516.94045992,0.00033676,60]
[343930912,1733090880747,-453.21568965,0.00033676,60]
[343930913,1733090880777,-2106.07,0.00033698,120]
[343930914,1733090880802,-2106.07,0.00033972,120]
[343930915,1733090880829,-392.788625,0.00034,30]
[343930916,1733090880858,-151.0,0.00034027,120]
[343930917,1733090880883,-1000.0,0.00034224,60]
[343930918,1733090880907,-2106.07,0.00034246,120]
[343930919,1733090880934,-177.52222222,0.00034247,120]
[343930920,1733090880962,-2000.0,0.00034384,120]
[343930921,1733090880987,-750.0,0.000344,120]
[343930922,1733090881020,-500.0,0.00034498,60]
[343930923,1733090881045,-5332.51228593,0.000345,30]
[343930924,1733090881070,-2106.07,0.0003452,120]
[343930925,1733090881095,-2000.0,0.00034521,120]
[343930926,1733090881121,-2000.0,0.00034658,120]
[343930927,1733090881146,-2106.07,0.00034794,120]
[343930928,1733090881170,-2000.0,0.00034795,120]
[343930929,1733090881194,-2000.0,0.00034932,120]
[343930930,1733090881219,-287.45,0.0003497,120]
[343930931,1733090881244,-150.5,0.0003497,30]
[343930932,1733090881272,-150.5,0.0003497,30]
[343930933,1733090881297,-179.0,0.0003497,120]
[343930934,1733090881323,-157.0,0.0003497,120]
[343930935,1733090881348,-150.5,0.0003497,120]
[343930936,1733090881372,-150.5,0.0003497,120]
[343930937,1733090881396,-150.5,0.0003498,120]
[343930938,1733090881420,-150.5,0.0003498,30]
[343930939,1733090881444,-150.5,0.0003498,30]
[343930940,1733090881468,-300.5,0.0003498,30]
[343930941,1733090881491,-150.5,0.0003498,120]
[343930942,1733090881517,-150.5,0.0003498,120]
[343930943,1733090881542,-150.5,0.0003498,120]
[343930944,1733090881567,-150.5,0.0003498,120]
[343930945,1733090881591,-150.5,0.0003499,30]
[343930946,1733090881617,-150.5,0.0003499,120]
[343930947,1733090881642,-150.5,0.0003499,30]
[343930948,1733090881666,-150.5,0.0003499,30]
[343930949,1733090881691,-150.5,0.0003499,120]
[343930950,1733090881716,-150.5,0.0003499,120]
[343930951,1733090881742,-150.5,0.0003499,120]
[343930952,1733090881769,-260.15,0.0003499,120]
[343930953,1733090881799,-150.5,0.0003499,120]
[343930954,1733090881826,-238.14,0.0003499,120]
[343930955,1733090881854,-1066.59423462,0.00035,32]
[343930956,1733090881881,-15895.0,0.00035,40]
[343930957,1733090881905,-2000.0,0.00035,120]
[343930958,1733090881930,-158.770265,0.00035,30]
[343930959,1733090881957,-158.770265,0.00035,30]
[343930960,1733090881982,-3000.0,0.00035,30]
[343930961,1733090882008,-1238.11971152,0.00035,120]
[343930962,1733090882034,-2000.0,0.00035068,120]
[343930963,1733090882059,-2106.07,0.00035068,120]
[343930964,1733090882084,-177.52222222,0.00035096,120]
[343930965,1733090882109,-1316.53272487,0.000351,30]
[343930966,1733090882134,-2000.0,0.00035205,120]
[343930967,1733090882158,-1031.25368725,0.0003532,60]
[343930968,1733090882183,-2000.0,0.00035342,120]
[343930969,1733090882210,-2106.07,0.00035342,120]
[343930970,1733090882236,-151.0,0.0003537,120]
[343930971,1733090882264,-750.0,0.000354,120]
[343930972,1733090882291,-2000.0,0.00035479,120]
[343930973,1733090882320,-2000.0,0.00035616,120]
[343930974,1733090882344,-2106.07,0.00035616,120]
[343930975,1733090882369,-200.0,0.00035616,60]
[343930976,1733090882393,-2106.07,0.0003589,120]
[343930977,1733090882417,-177.52222222,0.00035945,120]
[343930978,1733090882443,-5332.51228593,0.00036,30]
[343930979,1733090882469,-15000.0,0.00036,30]
[343930980,1733090882494,-250.0,0.00036,30]
[343930981,1733090882522,-2106.07,0.00036164,120]
[343930982,1733090882548,-700.0,0.000364,120]
[343930983,1733090882572,-2106.07,0.00036438,120]
[343930984,1733090882597,-2106.07,0.00036712,120]
[343930985,1733090882623,-151.0,0.00036712,120]
[343930986,1733090882650,-177.52222222,0.00036795,120]
[343930987,1733090882675,-16998.0,0.000368,30]
[343930988,1733090882704,-7839.0216127,0.0003698,30]
[343930989,1733090882729,-2106.07,0.00036986,120]
[343930990,1733090882756,-1241.11930842,0.00037,120]
[343930991,1733090882785,-186.0,0.00037042,30]
[343930992,1733090882811,-2106.07,0.0003726,120]
[343930993,1733090882836,-2000.0,0.00037373,120]
[343930994,1733090882863,-5332.51228593,0.000375,30]
[343930995,1733090882887,-2106.07,0.00037534,120]
[343930996,1733090883133,-177.52222222,0.00037644,120]
[343930997,1733090883163,-750.0,0.000377,120]
[343930998,1733090883191,-2106.07,0.00037808,120]
[343930999,1733090883218,-2000.0,0.00037898,31]
[343931000,1733090883248,-24222.05312333,0.000379,120]